fUSD/lending_fUSD_20240701
["ID","MTS","AMOUNT","RATE_DAILY","PERIOD"]
[330817801,1719841843223,-483.06790317,0.00018899,2]
[330817802,1719841843233,-297.32648978,0.00018899,2]
[330817803,1719841843243,-156.00378299,0.00018899,2]
[330817804,1719841843253,-158.09,0.000189,2]
[330817805,1719841843266,-158.09,0.000189,2]
[330817806,1719841843287,-717.65350727,0.00018919,2]
[330817811,1719841843298,-156.6318276,0.00018919,2]
[330817816,1719841843310,-500.0,0.00018938,2]
[330817819,1719841843320,-500.0,0.00018938,2]
[330817823,1719841843331,-1400.55359634,0.00018999,7]
[330817827,1719841843341,-169.25541786,0.00018999,2]
[330817830,1719841843351,-3676.24400557,0.00019,2]
[330817832,1719841843361,-255.56085265,0.00019069,2]
[330817833,1719841843371,-448.0,0.00019149,2]
[330817834,1719841843380,-617.0,0.00019149,2]
[330817835,1719841843389,-14767.102,0.00019149,2]
[330817836,1719841843399,-625.64470959,0.00019177,2]
[330817837,1719841843408,-374.44777983,0.00019177,2]
[330817838,1719841843418,-150.62,0.00019178,2]
[330817839,1719841843428,-224.27,0.00019178,2]
[330817840,1719841843438,-250.0,0.00019178,2]
[330817841,1719841843447,-167.0,0.0001928,2]
[330817842,1719841843456,-238.23502209,0.00019299,2]
[330817843,1719841843465,-2005.97479617,0.0001935,2]
[330817844,1719841843475,-227.0716558,0.00019352,2]
[330817845,1719841843484,-990.27676995,0.00019399,2]
[330817846,1719841843493,-881.80386009,0.000195,2]
[330817847,1719841843502,-2500.0,0.000195,2]
[330817848,1719841843513,-5423.52523078,0.0001953,2]
[330817849,1719841843531,-2007.04422009,0.00019566,2]
[330817850,1719841843541,-151.0,0.00019629,2]
[330817851,1719841843550,-1000.0,0.00019737,2]
[330817852,1719841843559,-167.0,0.00019843,2]
[330817853,1719841843568,-1000.0,0.00019899,2]
[330817854,1719841843578,-464.40095637,0.00019899,2]
[330817855,1719841843588,-151.0,0.00019948,2]
[330817856,1719841843598,-153.38249546,0.00019985,2]
[330817857,1719841843608,-159.57081907,0.0002,2]
[330817858,1719841843618,-317.542978,0.0002,2]
[330817859,1719841843627,-500.0,0.00020034,2]
[330817860,1719841843636,-500.0,0.00020034,2]
[330817861,1719841843646,-150.62,0.0002005,2]
[330817862,1719841843656,-161.9034239,0.00020079,2]
[330817863,1719841843666,-716.21074661,0.00020102,2]
[330817864,1719841843676,-151.0,0.00020267,2]
[330817865,1719841843685,-720.87,0.00020415,2]
[330817866,1719841843694,-5423.52523078,0.00020486,2]
[330817867,1719841843704,-2007.04422009,0.00020511,2]
[330817868,1719841843714,-151.0,0.00020586,2]
[330817869,1719841843724,-161.9034239,0.00020653,2]
[330817870,1719841843733,-158.09,0.0002079,2]
[330817871,1719841843743,-27198.4569893,0.000208,2]
[330817872,1719841843752,-151.0,0.00020905,2]
[330817873,1719841843761,-162.21837457,0.00020916,2]
[330817874,1719841843783,-150.62,0.00020922,2]
[330817875,1719841843793,-173.292284,0.00020987,2]
[330817876,1719841843803,-154.21925,0.00020987,2]
[330817877,1719841843814,-183.602112,0.00020987,2]
[330817878,1719841843824,-181.263873,0.00020987,2]
[330817879,1719841843834,-155.567472,0.00020987,2]
[330817880,1719841843844,-165.645676,0.00020987,2]
[330817881,1719841843854,-728.943877,0.00020987,2]
[330817882,1719841843865,-154.77779446,0.00020988,2]
[330817883,1719841843876,-2316.33870148,0.00020999,2]
[330817884,1719841843886,-225.19167095,0.00021,2]
[330817885,1719841843895,-278943.99491298,0.00021,3]
[330817886,1719841843905,-1250.0,0.00021,2]
[330817887,1719841843915,-999.08,0.00021,2]
[330817888,1719841843924,-300.0,0.0002113,2]
[330817889,1719841843933,-500.0,0.0002113,2]
[330817890,1719841843944,-154.77779446,0.00021192,2]
[330817891,1719841843954,-418.89,0.00021221,2]
[330817892,1719841843965,-853.83,0.00021221,2]
[330817893,1719841843975,-418.89,0.00021221,2]
[330817894,1719841843986,-418.53,0.00021221,2]
[330817896,1719841843997,-151.0,0.00021224,2]
[330817898,1719841844007,-155.567472,0.00021249,2]
[330817899,1719841844030,-728.943877,0.00021249,2]
[330817900,1719841844040,-5423.52523078,0.00021443,2]
[330817901,1719841844051,-2007.04422009,0.00021455,2]
[330817902,1719841844062,-155.567472,0.00021512,2]
[330817903,1719841844072,-728.943877,0.00021512,2]
[330817904,1719841844082,-1000.0,0.00021531,2]
[330817905,1719841844093,-853.83,0.00021534,2]
[330817906,1719841844103,-837.54,0.00021534,2]
[330817907,1719841844113,-853.83,0.00021534,2]
[330817908,1719841844124,-853.83,0.00021534,2]
[330817909,1719841844147,-193.56,0.00021534,2]
[330817910,1719841844172,-843.39,0.00021534,2]
[330817911,1719841844200,-151.0,0.00021543,2]
[330817912,1719841844223,-198.0,0.0002161,3]
[330817913,1719841844248,-150.0,0.00021636,2]
[330817914,1719841844301,-150.0,0.00021642,2]
[330817915,1719841844326,-155.22,0.00021644,2]
[330817916,1719841844336,-155.43,0.00021644,2]
[330817917,1719841844346,-150.0,0.00021644,2]
[330817931,1719841844511,-260.74907637,0.00021649,2]
[330817933,1719841844522,-528.11,0.00021671,2]
[330817935,1719841844532,-424.18,0.00021671,2]
[330817937,1719841844542,-528.26,0.00021671,2]
[330817939,1719841844552,-151.39,0.00021671,2]
[330817941,1719841844562,-150.0,0.00021671,2]
[330817943,1719841844572,-150.0,0.00021671,2]
[330817945,1719841844583,-152.2,0.00021671,2]
[330817947,1719841844593,-164.8,0.00021671,2]
[330817950,1719841844603,-354.72,0.00021671,2]
[330817952,1719841844613,-153.68,0.00021671,2]
[330817954,1719841844622,-424.18,0.00021671,2]
[330817956,1719841844631,-528.26,0.00021671,2]
[330817958,1719841844641,-150.0,0.00021671,2]
[330817960,1719841844650,-354.72,0.00021671,2]
[330817961,1719841844659,-150.0,0.00021671,2]
[330817962,1719841844669,-164.8,0.00021671,2]
[330817963,1719841844680,-150.0,0.00021671,2]
[330817964,1719841844690,-354.72,0.00021671,2]
[330817965,1719841844700,-164.8,0.00021671,2]
[330817966,1719841844710,-150.0,0.00021671,2]
[330817967,1719841844720,-424.18,0.00021671,2]
[330817968,1719841844731,-150.0,0.00021671,2]
[330817969,1719841844740,-150.0,0.00021671,2]
[330817970,1719841844751,-150.0,0.00021671,2]
[330817971,1719841844761,-528.26,0.00021671,2]
[330817972,1719841844781,-164.8,0.00021671,2]
[330817973,1719841844796,-150.0,0.00021671,2]
[330817974,1719841844806,-528.26,0.00021671,2]
[330817975,1719841844817,-150.0,0.00021671,2]
[330817976,1719841844829,-424.18,0.00021671,2]
[330817977,1719841844839,-354.72,0.00021671,2]
[330817978,1719841844848,-150.0,0.00021671,2]
[330817980,1719841844858,-424.18,0.00021671,2]
[330817981,1719841844868,-164.8,0.00021671,2]
[330817983,1719841844881,-150.0,0.00021671,2]
[330817985,1719841844890,-354.72,0.00021671,2]
[330817987,1719841844900,-528.26,0.00021671,2]
[330817989,1719841844909,-150.0,0.00021671,2]
[330817991,1719841844919,-150.0,0.00021671,2]
[330817993,1719841844929,-300.0,0.00021671,2]
[330817995,1719841844940,-354.72,0.00021671,2]
[330817997,1719841844950,-164.8,0.00021671,2]
[330817999,1719841844960,-528.26,0.00021671,2]
[330818000,1719841844969,-424.18,0.00021671,2]
[330818001,1719841844978,-528.26,0.00021671,2]
[330818002,1719841844988,-424.18,0.00021671,2]
[330818003,1719841844997,-164.8,0.00021671,2]
[330818004,1719841845007,-150.0,0.00021671,2]
[330818005,1719841845026,-354.72,0.00021671,2]
[330818006,1719841845036,-164.8,0.00021671,2]
[330818007,1719841845048,-150.0,0.00021671,2]
[330818008,1719841845058,-354.72,0.00021671,2]
[330818009,1719841845068,-379.2,0.00021671,2]
[330818010,1719841845078,-528.26,0.00021671,2]
[330818011,1719841845088,-150.0,0.00021671,2]
[330818012,1719841845100,-528.26,0.00021671,2]
[330818013,1719841845110,-164.8,0.00021671,2]
[330818014,1719841845121,-354.72,0.00021671,2]
[330818015,1719841845132,-150.0,0.00021678,2]
[330818016,1719841845141,-150.0,0.00021687,2]
[330818017,1719841845151,-150.0,0.00021698,2]
[330818018,1719841845162,-917.88414,0.000217,2]
[330818019,1719841845172,-150.0,0.00021702,2]
[330818020,1719841845183,-150.0,0.00021709,2]
[330818021,1719841845194,-155.74816734,0.0002171,2]
[330818022,1719841845203,-176.308625,0.0002171,2]
[330818023,1719841845214,-150.0,0.00021712,2]
[330818024,1719841845224,-155.74222071,0.00021714,2]
[330818025,1719841845235,-150.0,0.00021726,2]
[330818026,1719841845245,-189.70654062,0.00021768,2]
[330818027,1719841845255,-155.567472,0.00021774,2]
[330818028,1719841845276,-728.943877,0.00021774,2]
[330818029,1719841845288,-150.0,0.0002178,2]
[330818030,1719841845299,-150.0,0.00021787,2]
[330818031,1719841845309,-150.62,0.00021793,2]
[330818032,1719841845318,-150.0,0.00021794,2]
[330818033,1719841845328,-150.0,0.00021798,2]
[330818034,1719841845339,-150.0,0.00021803,2]
[330818035,1719841845349,-150.0,0.00021809,2]
[330818036,1719841845360,-150.0,0.00021809,2]
[330818037,1719841845371,-150.0,0.00021812,2]
[330818038,1719841845382,-150.0,0.00021813,2]
[330818039,1719841845393,-2624.38356569,0.00021817,2]
[330818040,1719841845403,-153.62723589,0.00021817,2]
[330818041,1719841845414,-10407.38091931,0.00021817,2]
[330818042,1719841845425,-1309.5476617,0.00021817,2]
[330818043,1719841845435,-150.0,0.00021824,2]
[330818044,1719841845446,-150.0,0.00021833,2]
[330818045,1719841845457,-5800.0,0.00021858,2]
[330818046,1719841845467,-150.0,0.00021862,2]
[330818047,1719841845477,-151.0,0.00021862,2]
[330818048,1719841845487,-5800.0,0.00021866,2]
[330818049,1719841845498,-150.0,0.00021867,2]
[330818050,1719841845509,-2624.38356569,0.0002187,2]
[330818051,1719841845532,-5800.0,0.00021875,2]
[330818052,1719841845542,-151.0,0.00021883,2]
[330818053,1719841845552,-151.0,0.00021883,2]
[330818054,1719841845562,-151.0,0.00021883,2]
[330818055,1719841845572,-203.869003,0.00021883,2]
[330818056,1719841845582,-151.0,0.00021883,2]
[330818057,1719841845593,-203.869003,0.00021883,2]
[330818058,1719841845604,-151.0,0.00021883,2]
[330818059,1719841845614,-175.01637,0.00021883,2]
[330818060,1719841845625,-151.0,0.00021883,2]
[330818061,1719841845635,-175.01637,0.00021883,2]
[330818062,1719841845645,-151.0,0.00021883,2]
[330818063,1719841845655,-151.0,0.00021883,2]
[330818064,1719841845665,-5800.0,0.00021883,2]
[330818065,1719841845675,-150.0,0.00021884,2]
[330818066,1719841845685,-5800.0,0.00021892,2]
[330818067,1719841845695,-150.0,0.00021894,2]
[330818068,1719841845706,-491.0,0.000219,4]
[330818069,1719841845716,-982.0,0.000219,4]
[330818070,1719841845725,-339.0,0.000219,2]
[330818071,1719841845734,-5800.0,0.000219,2]
[330818072,1719841845744,-500.0809,0.000219,2]
[330818073,1719841845754,-500.0809,0.000219,2]
[330818074,1719841845764,-1026.0,0.000219,2]
[330818075,1719841845785,-150.0,0.00021904,2]
[330818076,1719841845795,-158.09,0.00021907,2]
[330818077,1719841845809,-158.09,0.00021907,2]
[330818078,1719841845819,-158.09,0.00021907,2]
[330818079,1719841845829,-839.969757,0.00021908,2]
[330818080,1719841845840,-505.7561436,0.00021908,2]
[330818081,1719841845851,-4374.0199708,0.00021908,2]
[330818082,1719841845861,-258305.69936376,0.00021914,2]
[330818083,1719841845872,-230.603982,0.00021916,2]
[330818084,1719841845884,-230.603982,0.00021916,2]
[330818085,1719841845895,-226.111924,0.00021916,2]
[330818086,1719841845906,-151.0,0.00021916,2]
[330818087,1719841845915,-226.111924,0.00021916,2]
[330818088,1719841845924,-151.0,0.00021916,2]
[330818089,1719841845936,-252.164457,0.00021916,2]
[330818090,1719841845946,-252.164457,0.00021916,2]
[330818091,1719841845956,-526.416785,0.00021916,2]
[330818092,1719841845967,-151.0,0.00021916,2]
[330818093,1719841845977,-526.416785,0.00021916,2]
[330818094,1719841845987,-151.0,0.00021916,2]
[330818095,1719841845997,-1687094.20298342,0.00021917,7]
[330818096,1719841846007,-1914.99225204,0.00021917,5]
[330818097,1719841846028,-500.0,0.00021917,4]
[330818098,1719841846038,-500.0,0.00021917,4]
[330818099,1719841846050,-500.0,0.00021917,4]
[330818100,1719841846060,-500.0,0.00021917,4]
[330818101,1719841846071,-500.0,0.00021917,4]
[330818102,1719841846081,-522.72414481,0.00021917,4]
[330818103,1719841846092,-500.0,0.00021917,4]
[330818104,1719841846102,-500.0,0.00021917,4]
[330818105,1719841846113,-500.0,0.00021917,4]
[330818106,1719841846123,-500.8714336,0.00021917,4]
[330818107,1719841846133,-500.0,0.00021917,4]
[330818108,1719841846144,-500.0,0.00021917,4]
[330818109,1719841846154,-500.0,0.00021917,4]
[330818110,1719841846164,-501.47540968,0.00021917,4]
[330818111,1719841846174,-500.0,0.00021917,4]
[330818112,1719841846184,-500.0,0.00021917,4]
[330818113,1719841846193,-500.0,0.00021917,4]
[330818114,1719841846204,-500.0,0.00021917,4]
[330818115,1719841846214,-500.0,0.00021917,4]
[330818116,1719841846224,-500.0,0.00021917,4]
[330818117,1719841846234,-500.0,0.00021917,4]
[330818118,1719841846244,-500.0,0.00021917,4]
[330818119,1719841846254,-500.0,0.00021917,4]
[330818120,1719841846271,-500.0,0.00021917,4]
[330818121,1719841846285,-500.92658246,0.00021917,4]
[330818122,1719841846295,-500.0,0.00021917,4]
[330818123,1719841846305,-500.0,0.00021917,4]
[330818124,1719841846315,-500.0,0.00021917,4]
[330818125,1719841846325,-501.34906367,0.00021917,4]
[330818126,1719841846335,-280.18182133,0.00021917,4]
[330818127,1719841846346,-501.09417525,0.00021917,4]
[330818128,1719841846356,-501.01274456,0.00021917,4]
[330818129,1719841846366,-500.84517128,0.00021917,4]
[330818130,1719841846376,-501.27207981,0.00021917,4]
[330818131,1719841846385,-501.70367415,0.00021917,4]
[330818132,1719841846396,-500.47736433,0.00021917,4]
[330818133,1719841846406,-155.0,0.00021917,2]
[330818134,1719841846417,-581.33393112,0.00021917,2]
[330818135,1719841846427,-448.06132112,0.00021917,2]
[330818136,1719841846437,-500.0,0.00021917,4]
[330818137,1719841846447,-501.14282524,0.00021917,4]
[330818138,1719841846457,-501.58207295,0.00021917,4]
[330818139,1719841846466,-338.99508779,0.00021917,7]
[330818140,1719841846477,-502.16525006,0.00021917,4]
[330818141,1719841846487,-500.0,0.00021917,4]
[330818142,1719841846497,-151.95808178,0.00021917,4]
[330818143,1719841846507,-393.91529688,0.00021917,4]
[330818144,1719841846527,-4279.14032286,0.00021917,15]
[330818145,1719841846538,-500.0,0.00021917,4]
[330818146,1719841846547,-500.0,0.00021917,4]
[330818147,1719841846557,-500.0,0.00021917,4]
[330818148,1719841846566,-1815.65,0.00021917,4]
[330818149,1719841846577,-1815.65,0.00021917,4]
[330818150,1719841846587,-1815.65,0.00021917,4]
[330818151,1719841846597,-500.0,0.00021917,4]
[330818152,1719841846608,-1815.65,0.00021917,4]
[330818153,1719841846618,-500.0,0.00021917,4]
[330818154,1719841846628,-1815.65,0.00021917,4]
[330818155,1719841846639,-1815.65,0.00021917,4]
[330818156,1719841846649,-1815.65,0.00021917,4]
[330818157,1719841846659,-1815.65,0.00021917,4]
[330818158,1719841846669,-1815.65,0.00021917,4]
[330818159,1719841846679,-1815.65,0.00021917,4]
[330818160,1719841846690,-1815.65,0.00021917,4]
[330818161,1719841846700,-1815.65,0.00021917,4]
[330818162,1719841846711,-1815.65,0.00021917,4]
[330818163,1719841846722,-1815.65,0.00021917,4]
[330818164,1719841846732,-1815.65,0.00021917,4]
[330818165,1719841846742,-1815.65,0.00021917,4]
[330818166,1719841846752,-1815.65,0.00021917,4]
[330818167,1719841846762,-1815.65,0.00021917,4]
[330818168,1719841846787,-1815.65,0.00021917,4]
[330818169,1719841846799,-1815.65,0.00021917,4]
[330818170,1719841846810,-1815.65,0.00021917,4]
[330818171,1719841846820,-1815.65,0.00021917,4]
[330818172,1719841846966,-1815.65,0.00021917,4]
[330818173,1719841846992,-1815.65138215,0.00021917,4]
[330818174,1719841847002,-635.93069162,0.00021917,4]
[330818175,1719841847012,-500.0,0.00021917,4]
[330818176,1719841847030,-500.0,0.00021917,4]
[330818177,1719841847040,-501.09183806,0.00021917,4]
[330818178,1719841847051,-500.0,0.00021917,4]
[330818179,1719841847061,-590.04,0.00021917,4]
[330818180,1719841847071,-500.0,0.00021917,4]
[330818181,1719841847080,-451.05,0.00021917,4]
[330818182,1719841847091,-500.0,0.00021917,4]
[330818183,1719841847100,-500.0,0.00021917,4]
[330818184,1719841847110,-500.0,0.00021917,4]
[330818185,1719841847120,-500.0,0.00021917,4]
[330818186,1719841847130,-500.0,0.00021917,4]
[330818187,1719841847140,-535.22,0.00021917,4]
[330818188,1719841847150,-500.0,0.00021917,4]
[330818189,1719841847160,-166.67,0.00021917,4]
[330818190,1719841847170,-500.0,0.00021917,4]
[330818191,1719841847180,-500.0,0.00021917,4]
[330818192,1719841847189,-500.0,0.00021917,4]
[330818193,1719841847199,-500.0,0.00021917,4]
[330818194,1719841847209,-500.0,0.00021917,4]
[330818195,1719841847219,-500.0,0.00021917,4]
[330818196,1719841847229,-500.0,0.00021917,4]
[330818197,1719841847241,-417.67,0.00021917,4]
[330818198,1719841847251,-503.20606925,0.00021917,4]
[330818199,1719841847260,-500.0,0.00021917,4]
[330818200,1719841847274,-561.22,0.00021917,4]
[330818201,1719841847286,-500.0,0.00021917,4]
[330818202,1719841847295,-500.0,0.00021917,4]
[330818203,1719841847306,-501.79551155,0.00021917,4]
[330818204,1719841847316,-500.0,0.00021917,4]
[330818205,1719841847326,-500.96491141,0.00021917,4]
[330818206,1719841847336,-468.76,0.00021917,4]
[330818207,1719841847347,-500.0,0.00021917,4]
[330818208,1719841847356,-500.0,0.00021917,4]
[330818209,1719841847367,-500.0,0.00021917,4]
[330818210,1719841847377,-500.0,0.00021917,4]
[330818211,1719841847388,-500.0,0.00021917,4]
[330818212,1719841847397,-500.0,0.00021917,4]
[330818213,1719841847408,-594.21,0.00021917,4]
[330818214,1719841847418,-628.68564499,0.00021917,4]
[330818215,1719841847427,-500.0,0.00021917,4]
[330818216,1719841847437,-500.0,0.00021917,4]
[330818217,1719841847447,-315.60823636,0.00021917,4]
[330818218,1719841847456,-500.0,0.00021917,4]
[330818219,1719841847466,-500.0,0.00021917,4]
[330818220,1719841847475,-500.0,0.00021917,4]
[330818221,1719841847485,-217.98689573,0.00021917,4]
[330818222,1719841847494,-500.0,0.00021917,4]
[330818223,1719841847504,-500.0,0.00021917,4]
[330818225,1719841847515,-621.07,0.00021917,4]
[330818227,1719841847530,-200.0,0.00021917,4]
[330818230,1719841847541,-200.63100956,0.00021917,4]
[330818232,1719841847550,-500.0,0.00021917,4]
[330818234,1719841847558,-500.0,0.00021917,4]
[330818235,1719841847567,-498.99492466,0.00021917,4]
[330818238,1719841847577,-500.0,0.00021917,4]
[330818240,1719841847587,-500.0,0.00021917,4]
[330818242,1719841847597,-601.37,0.00021917,4]
[330818244,1719841847606,-297.10267784,0.00021917,4]
[330818246,1719841847616,-500.0,0.00021917,4]
[330818248,1719841847626,-500.0,0.00021917,4]
[330818250,1719841847636,-500.0,0.00021917,4]
[330818252,1719841847646,-500.0,0.00021917,4]
[330818254,1719841847656,-500.0,0.00021917,4]
[330818256,1719841847665,-500.0,0.00021917,4]
[330818258,1719841847675,-500.0,0.00021917,4]
[330818260,1719841847684,-500.0,0.00021917,4]
[330818262,1719841847694,-561.48,0.00021917,4]
[330818264,1719841847704,-259.87,0.00021917,4]
[330818267,1719841847720,-500.0,0.00021917,4]
[330818269,1719841847730,-500.0,0.00021917,4]
[330818271,1719841847740,-500.0,0.00021917,4]
[330818273,1719841847750,-500.0,0.00021917,4]
[330818275,1719841847760,-500.0,0.00021917,4]
[330818277,1719841847775,-500.0,0.00021917,4]
[330818279,1719841847785,-500.0,0.00021917,4]
[330818281,1719841847796,-500.0,0.00021917,4]
[330818283,1719841847806,-500.0,0.00021917,4]
[330818285,1719841847818,-205.49,0.00021917,4]
[330818287,1719841847828,-500.0,0.00021917,4]
[330818289,1719841847838,-548.4,0.00021917,4]
[330818291,1719841847850,-500.0,0.00021917,4]
[330818293,1719841847861,-500.0,0.00021917,4]
[330818295,1719841847872,-500.0,0.00021917,4]
[330818297,1719841847884,-500.0,0.00021917,4]
[330818299,1719841847895,-500.0,0.00021917,4]
[330818301,1719841847905,-500.0,0.00021917,4]
[330818303,1719841847914,-500.0,0.00021917,4]
[330818305,1719841847924,-582.31,0.00021917,4]
[330818308,1719841847934,-500.0,0.00021917,4]
[330818310,1719841847944,-500.0,0.00021917,4]
[330818311,1719841847955,-500.0,0.00021917,4]
[330818314,1719841847965,-501.64572299,0.00021917,4]
[330818316,1719841847975,-500.0,0.00021917,4]
[330818318,1719841847985,-500.0,0.00021917,4]
[330818320,1719841847994,-304.07,0.00021917,4]
[330818321,1719841848003,-500.0,0.00021917,4]
[330818323,1719841848013,-500.0,0.00021917,4]
[330818326,1719841848026,-592.21531663,0.00021917,4]
[330818328,1719841848035,-500.54095211,0.00021917,4]
[330818330,1719841848046,-500.0,0.00021917,4]
[330818332,1719841848056,-500.0,0.00021917,4]
[330818334,1719841848066,-500.0,0.00021917,4]
[330818336,1719841848075,-262.30417148,0.00021917,4]
[330818338,1719841848084,-614.35,0.00021917,4]
[330818339,1719841848095,-500.0,0.00021917,4]
[330818341,1719841848105,-500.0,0.00021917,4]
[330818342,1719841848114,-220.2,0.00021917,4]
[330818343,1719841848124,-151.0,0.00021917,2]
[330818344,1719841848134,-151.0,0.00021917,2]
[330818345,1719841848144,-500.0,0.00021917,4]
[330818346,1719841848153,-500.0,0.00021917,4]
[330818347,1719841848162,-500.0,0.00021917,4]
[330818348,1719841848172,-307.01,0.00021917,4]
[330818349,1719841848181,-500.0,0.00021917,4]
[330818350,1719841848191,-500.0,0.00021917,4]
[330818351,1719841848201,-500.0,0.00021917,4]
[330818352,1719841848211,-1173.74,0.00021917,4]
[330818353,1719841848222,-500.0,0.00021917,4]
[330818354,1719841848231,-500.0,0.00021917,4]
[330818355,1719841848242,-1173.74,0.00021917,4]
[330818356,1719841848252,-344.8,0.00021917,4]
[330818357,1719841848262,-1173.74,0.00021917,4]
[330818358,1719841848273,-1173.74,0.00021917,4]
[330818359,1719841848283,-1173.74,0.00021917,4]
[330818360,1719841848292,-1173.74,0.00021917,4]
[330818361,1719841848302,-1173.74,0.00021917,4]
[330818362,1719841848312,-1173.74,0.00021917,4]
[330818363,1719841848321,-329.62744029,0.00021917,4]
[330818364,1719841848331,-1173.74,0.00021917,4]
[330818365,1719841848341,-1173.74,0.00021917,4]
[330818366,1719841848351,-500.0,0.00021917,4]
[330818367,1719841848361,-500.0,0.00021917,4]
[330818368,1719841848371,-519.71,0.00021917,4]
[330818369,1719841848380,-1173.74,0.00021917,4]
[330818370,1719841848390,-1173.74,0.00021917,4]
[330818371,1719841848400,-1173.74,0.00021917,4]
[330818372,1719841848410,-500.0,0.00021917,4]
[330818373,1719841848419,-500.0,0.00021917,4]
[330818374,1719841848429,-500.0,0.00021917,4]
[330818375,1719841848438,-1173.74,0.00021917,4]
[330818376,1719841848448,-500.0,0.00021917,4]
[330818377,1719841848457,-500.50299086,0.00021917,4]
[330818378,1719841848467,-500.0,0.00021917,4]
[330818379,1719841848476,-500.0,0.00021917,4]
[330818380,1719841848486,-261.21,0.00021917,4]
[330818381,1719841848501,-1173.74,0.00021917,4]
[330818382,1719841848510,-1173.74,0.00021917,4]
[330818383,1719841848522,-501.24855616,0.00021917,4]
[330818384,1719841848531,-1173.74,0.00021917,4]
[330818385,1719841848541,-1173.74,0.00021917,4]
[330818386,1719841848551,-1173.74,0.00021917,4]
[330818387,1719841848562,-500.0,0.00021917,4]
[330818388,1719841848571,-500.0,0.00021917,4]
[330818389,1719841848580,-1173.74,0.00021917,4]
[330818390,1719841848590,-1173.74,0.00021917,4]
[330818391,1719841848600,-612.98378507,0.00021917,4]
[330818392,1719841848609,-500.0,0.00021917,4]
[330818393,1719841848619,-1173.74,0.00021917,4]
[330818394,1719841848628,-503.14609696,0.00021917,4]
[330818395,1719841848638,-500.0,0.00021917,4]
[330818396,1719841848647,-1173.74,0.00021917,4]
[330818397,1719841848657,-500.0,0.00021917,4]
[330818398,1719841848666,-500.0,0.00021917,4]
[330818399,1719841848676,-1173.97,0.00021917,4]
[330818400,1719841848685,-264.57568419,0.00021917,4]
[330818401,1719841848695,-574.4,0.00021917,4]
[330818402,1719841848704,-500.0,0.00021917,4]
[330818403,1719841848714,-500.0,0.00021917,4]
[330818404,1719841848724,-550.35,0.00021917,4]
[330818405,1719841848733,-500.0,0.00021917,4]
[330818406,1719841848742,-500.0,0.00021917,4]
[330818407,1719841848751,-500.0,0.00021917,4]
[330818408,1719841848760,-500.0,0.00021917,4]
[330818409,1719841848772,-275.34263062,0.00021917,4]
[330818410,1719841848781,-500.0,0.00021917,4]
[330818411,1719841848795,-500.0,0.00021917,4]
[330818412,1719841848805,-501.13300472,0.00021917,4]
[330818413,1719841848814,-569.93,0.00021917,4]
[330818414,1719841848824,-500.0,0.00021917,4]
[330818415,1719841848833,-500.0,0.00021917,4]
[330818416,1719841848843,-500.0,0.00021917,4]
[330818417,1719841848852,-471.74,0.00021917,4]
[330818418,1719841848862,-500.0,0.00021917,4]
[330818419,1719841848874,-500.0,0.00021917,4]